bitfinex/quotes_ETHUSD_20241116
["timestamp","ask_amount","ask_price","bid_price","bid_amount"]
[1731759236284,3.70006,3191.5,3191.0,0.05511364]
[1731759236589,0.03507278,3191.4,3191.0,0.05511364]
[1731759236797,0.03507278,3191.4,3191.0,3.18892364]
[1731759237146,0.03507278,3191.4,3191.0,0.05511364]
[1731759237348,0.5667,3191.9,3191.0,0.05511364]
[1731759237349,3.16848278,3191.5,3191.0,0.05511364]
[1731759237897,0.72023306,3191.5,3191.0,0.05511364]
[1731759238094,0.03507278,3191.5,3191.0,3.18884364]
[1731759238298,0.03507278,3191.5,3191.0,0.05511364]
[1731759238721,3.13371,3191.1,3191.0,0.05511364]
[1731759239015,4.36220678,3191.1,3191.0,0.05511364]
[1731759239300,7.91220678,3191.1,3191.0,3.64e-06]
[1731759239805,7.91220678,3191.1,3190.3,0.1442785]
[1731759239806,3.1344,3190.4,3190.3,0.1442785]
[1731759239968,3.73617278,3190.4,3190.3,0.1442785]
[1731759240148,7.97321006,3190.4,3190.3,0.1442785]
[1731759241237,11.95387395,3190.4,3190.3,0.1442785]
[1731759241492,6.1345,3190.3,3188.4,3.13629]
[1731759241710,6.1345,3190.3,3187.9,0.61124892]
[1731759241711,0.03507278,3190.2,3189.0,1.0269]
[1731759241861,3.13508,3189.8,3189.0,4.16265]
[1731759242176,0.03507278,3189.7,3189.1,1.0269]
[1731759242375,0.5667,3190.4,3188.7,3.13603]
[1731759242376,3.1352,3189.6,3188.7,3.13603]
[1731759242584,0.03507278,3189.5,3188.8,3.13597]
[1731759242980,3.17035278,3189.5,3188.7,1.0269]
[1731759243194,4.05408806,3189.5,3188.3,3.0]
[1731759243418,4.05408806,3189.5,3188.6,3.06159091]
[1731759243419,3.17035278,3189.5,3188.6,3.06159091]
[1731759243581,0.03507278,3189.5,3188.6,0.06159091]
[1731759243907,0.03507278,3189.6,3188.9,3.0]
[1731759244209,0.03507278,3189.6,3188.6,0.06159091]
[1731759244380,0.03507278,3189.6,3188.7,3.0]
[1731759244381,3.13528,3189.5,3188.7,3.0]
[1731759244707,3.13528,3189.5,3188.6,0.06159091]
[1731759245015,4.35089706,3189.5,3188.6,0.06159091]
[1731759245196,3.13607,3188.7,3188.6,0.06159091]
[1731759245509,3.70277,3188.7,3188.6,0.06159091]
[1731759245681,3.73784278,3188.7,3188.6,0.06159091]
[1731759246286,4.97522106,3188.7,3188.6,0.06159091]
[1731759246907,7.97522106,3188.7,3188.6,0.06159091]
[1731759247278,3.13686,3187.9,3187.8,0.06375]
[1731759247593,0.03507278,3187.9,3187.8,0.06375]
[1731759247808,3.17193278,3187.9,3187.8,0.06375]
[1731759248095,4.36949406,3187.9,3187.8,0.06375]
[1731759248985,4.36949406,3187.9,3187.1,0.1442785]
[1731759248986,0.55,3187.8,3187.1,0.1442785]
[1731759249211,8.21329795,3187.9,3187.1,0.1442785]
[1731759249212,3.17214278,3187.7,3187.1,0.1442785]
[1731759249538,3.17214278,3187.7,3187.1,3.2818785]
[1731759249539,0.03507278,3187.7,3187.1,3.2818785]
[1731759249689,0.03507278,3187.7,3187.1,0.1442785]
[1731759250229,3.13733,3187.5,3187.1,0.1442785]
[1731759250435,3.17244278,3187.4,3187.1,0.1442785]
[1731759250930,3.13755,3187.2,3187.1,0.1442785]
[1731759251338,3.70425,3187.2,3187.1,0.1442785]
[1731759251549,4.39191928,3187.2,3187.1,0.1442785]
[1731759251999,4.97699206,3187.2,3187.1,0.1442785]
[1731759252200,4.28932278,3187.2,3187.1,0.1442785]
[1731759252607,0.03507278,3187.2,3187.1,0.1442785]
[1731759252848,3.13706,3187.7,3187.1,0.1442785]
[1731759253034,0.03507278,3187.6,3187.3,3.13741]
[1731759253232,0.03507278,3187.6,3187.1,3.2818885]
[1731759253233,0.03507278,3188.1,3187.4,35.0]
[1731759253403,3.98066389,3189.3,3187.9,4.0269]
[1731759253404,0.03507278,3188.8,3187.9,4.0269]
[1731759253605,0.03507278,3189.2,3188.2,3.13654]
[1731759253904,0.03507278,3189.2,3187.9,1.0269]
[1731759254105,0.03507278,3189.2,3187.7,0.02]
[1731759254106,0.03507278,3189.2,3188.6,4.16303]
[1731759254321,4.54746389,3189.8,3188.6,4.16303]
[1731759254322,0.03507278,3189.6,3188.6,1.0269]
[1731759254833,0.03507278,3189.6,3187.8,3.44888]
[1731759254834,0.03507278,3189.6,3187.1,0.1442785]
[1731759254835,3.13728,3187.5,3187.1,0.1442785]
[1731759255032,0.03507278,3187.4,3187.1,0.1442785]
[1731759255355,3.13748,3187.3,3187.1,0.1442785]
[1731759255536,0.03507278,3187.2,3187.1,0.1442785]
[1731759255833,0.5668,3188.6,3187.2,3.13752]
[1731759255834,0.55,3188.3,3187.2,3.13752]
[1731759256137,6.13636,3188.4,3187.1,0.1442785]
[1731759256138,0.55,3187.7,3187.1,0.1442785]
[1731759256452,0.55,3187.7,3187.0,0.06590909]
[1731759256453,0.01,3187.1,3187.0,7.59e-06]
[1731759256730,3.13831,3186.5,3185.7,3.139]
[1731759256937,0.03507278,3186.4,3185.8,0.9392]
[1731759257097,3.13843,3186.3,3185.1,0.9392]
[1731759257443,3.13874,3186.0,3185.1,4.0788]
[1731759257649,0.60187278,3186.2,3185.1,4.0788]
[1731759257650,3.13904,3185.7,3185.1,0.9392]
[1731759257791,3.13904,3185.7,3184.3,4.39010899]
[1731759257792,0.03507278,3185.6,3184.6,0.9392]
[1731759257998,3.17392278,3185.9,3184.6,4.0793]
[1731759258214,3.17392278,3185.9,3185.0,3.13971]
[1731759258215,3.13893,3185.8,3185.0,3.13971]
[1731759258426,0.03507278,3185.7,3185.0,3.13971]
[1731759258839,0.03507278,3185.7,3185.6,3.13912]
[1731759259132,3.13846,3186.3,3185.6,0.0518255]
[1731759259363,0.03507278,3186.2,3185.6,0.0518255]
[1731759259897,0.63802189,3187.1,3186.3,3.13843]
[1731759259898,0.03507278,3186.9,3186.3,3.13843]
[1731759260116,0.03507278,3186.9,3185.9,0.9392]
[1731759260493,0.03507278,3187.5,3186.9,3.13783]
[1731759260648,3.13736,3187.4,3186.5,3.13816]
[1731759260830,0.03507278,3187.3,3186.5,0.927659]
[1731759261030,0.03507278,3187.3,3186.0,38.1904855]
[1731759261031,0.03507278,3187.3,3186.8,3.13784]
[1731759261361,0.03507278,3187.3,3186.6,4.0773]
[1731759261544,0.03507278,3187.3,3186.6,0.9392]
[1731759261882,0.5668,3187.8,3186.1,3.0]
[1731759261883,0.03507278,3187.6,3186.1,3.0]
[1731759262065,0.03507278,3187.6,3186.4,3.13827]
[1731759262237,0.01,3187.2,3186.3,3.0]
[1731759262436,0.01,3187.2,3183.7,0.9492]
[1731759262437,0.5668,3186.0,3183.7,0.9492]
[1731759262640,3.13912,3185.7,3184.9,0.9392]
[1731759262960,3.13925,3185.5,3184.0,3.1407]
[1731759263177,0.03507278,3185.4,3184.1,0.62915]
[1731759263468,0.03507278,3185.4,3184.0,0.9392]
[1731759263469,3.14004,3184.7,3184.0,0.9392]
[1731759263672,0.5668,3185.2,3183.6,0.06281694]
[1731759263673,0.03507278,3184.6,3183.6,0.06281694]
[1731759263993,0.03507278,3184.6,3183.7,3.14095]
[1731759264277,0.03507278,3185.1,3183.5,3.14118]
[1731759264478,3.13999,3184.8,3183.8,3.14082]
[1731759264780,0.03507278,3184.7,3183.8,3.14082]
[1731759265138,0.03507278,3184.7,3183.6,3.14109]
[1731759265339,0.35257306,3184.7,3183.9,3.14077]
[1731759265562,0.35257306,3184.7,3183.7,3.14098]
[1731759265563,0.03507278,3184.7,3183.7,3.14098]
[1731759265853,3.17499278,3184.8,3184.0,3.14067]
[1731759266075,3.17499278,3184.8,3183.3,3.14139]
[1731759266076,4.01573667,3184.8,3183.1,0.9392]
[1731759266391,3.14052,3184.2,3183.5,3.14118]
[1731759266693,3.13989,3184.9,3183.2,3.14149]
[1731759266694,0.03507278,3184.4,3184.0,3.1407]
[1731759266853,0.03507278,3184.9,3183.9,0.9392]
[1731759267039,3.14011,3184.6,3183.9,0.9392]
[1731759267235,3.14041,3184.3,3184.0,0.02741908]
[1731759267473,0.03507278,3184.2,3184.0,3.16810908]
[1731759267676,3.0,3185.1,3183.1,3.9392]
[1731759267677,3.7072,3184.3,3183.1,3.9392]
[1731759267844,0.03507278,3184.2,3184.1,0.02741639]
[1731759268061,0.03507278,3184.2,3183.2,3.14149]
[1731759268062,0.03507278,3184.2,3183.5,3.1411]
[1731759268263,3.1407,3184.0,3183.1,0.9392]
[1731759268444,3.14101,3183.7,3183.1,0.9392]
[1731759268637,0.03507278,3183.6,3183.1,0.9392]
[1731759268880,3.5668,3184.7,3183.1,4.0807]
[1731759268881,3.17558278,3184.2,3183.1,4.0807]
[1731759269189,3.1406,3184.1,3183.1,0.9392]
[1731759269381,3.1406,3184.1,3183.0,8.32220803]
[1731759269382,0.5668,3183.9,3183.0,5.18052803]
[1731759269683,3.17597278,3183.8,3183.0,5.18052803]
[1731759269987,3.51527728,3183.7,3183.0,5.18052803]
[1731759270183,0.03507278,3183.6,3183.0,5.18052803]
[1731759271905,3.14123,3183.5,3182.8,0.1454606]
[1731759272062,0.5668,3183.9,3182.9,3.14174]
[1731759272063,0.03507278,3183.4,3182.9,3.14174]
[1731759272264,0.03507278,3183.7,3182.9,3.455914]
[1731759272457,0.03507278,3183.7,3183.3,3.14129]
[1731759272661,7.12058389,3184.8,3183.1,3.14156]
[1731759272662,3.14094,3183.8,3183.1,3.14156]
[1731759272896,3.14094,3183.8,3182.4,0.01]
[1731759272897,0.03507278,3183.7,3182.7,3.0]
[1731759273212,3.17581278,3184.0,3183.1,3.14153]
[1731759273414,3.14098,3183.8,3182.9,3.14178]
[1731759273559,0.03507278,3183.7,3182.9,3.1417]
[1731759273760,0.03507278,3183.7,3182.6,3.20491595]
[1731759273978,3.03507278,3184.3,3182.7,3.0]
[1731759274174,3.14062,3184.1,3183.2,3.1414]
[1731759274389,3.14081,3183.9,3183.0,3.14168]
[1731759274707,0.58507278,3183.8,3183.4,3.14127]
[1731759275002,0.03507278,3184.2,3183.9,3.1407]
[1731759275209,0.03507278,3184.2,3183.7,4.07829]
[1731759275210,0.03507278,3184.7,3183.7,4.07829]
[1731759275535,0.40970906,3184.7,3183.9,3.14075]
[1731759276057,3.14011,3184.6,3183.8,3.14088]
[1731759276302,3.17528278,3184.5,3183.8,3.14088]
[1731759276510,3.17528278,3184.5,3183.3,0.9373]
[1731759276511,0.03507278,3184.5,3184.4,3.1403]
[1731759276658,0.03507278,3184.6,3184.4,3.1403]
[1731759276866,0.03507278,3185.2,3184.4,3.1403]
[1731759277102,0.03507278,3185.2,3184.5,3.14018]
[1731759277406,0.03507278,3185.2,3184.9,3.13979]
[1731759277561,3.71037,3185.7,3184.5,0.314018]
[1731759277562,0.03507278,3185.6,3184.5,0.314018]
[1731759277906,0.03507278,3185.6,3184.4,3.0]
[1731759278105,0.03507278,3185.6,3184.2,0.9373]
[1731759278106,0.03507278,3185.6,3185.2,3.13943]
[1731759278409,0.03507278,3186.0,3185.2,0.627906]
[1731759278558,0.03507278,3186.0,3185.1,0.9373]
[1731759278763,0.03507278,3186.0,3185.7,3.13902]
[1731759278986,0.5713,3186.5,3185.8,3.13891]
[1731759278987,0.03507278,3186.4,3185.8,3.13891]
[1731759279404,0.40953206,3186.4,3185.8,3.13891]
[1731759279607,0.03507278,3186.4,3185.1,0.9373]
[1731759279820,0.03507278,3186.4,3186.0,3.13865]
[1731759280119,0.63810883,3187.2,3186.2,3.13853]
[1731759280120,0.03507278,3186.8,3186.2,3.13853]
[1731759280279,0.03507278,3186.8,3186.4,3.13833]
[1731759280478,0.03507278,3187.1,3186.4,3.13833]
[1731759280720,0.34883678,3187.1,3186.4,3.13833]
[1731759280920,3.48651678,3187.1,3186.3,3.13835]
[1731759281121,0.03507278,3187.1,3186.1,4.07592]
[1731759281327,0.03507278,3187.1,3185.7,0.9373]
[1731759281328,3.13808,3186.7,3185.7,0.9373]
[1731759281524,0.03507278,3186.6,3186.0,3.13864]
[1731759281728,0.03507278,3186.6,3185.8,3.13892]
[1731759281729,0.5713,3186.5,3186.1,3.13862]
[1731759281899,0.03507278,3186.4,3185.2,3.13945]
[1731759282218,0.03507278,3186.4,3184.3,0.9373]
[1731759282219,3.1397,3185.1,3184.3,0.9373]
[1731759282423,3.1397,3185.1,3183.6,3.14103]
[1731759282424,0.03507278,3185.0,3183.9,0.9373]
[1731759282726,3.6118,3186.2,3183.9,0.9373]
[1731759282727,3.17449278,3185.3,3184.5,3.1402]
[1731759283078,3.17449278,3185.3,3183.9,0.9373]
[1731759283079,0.55,3185.1,3183.9,4.07809]
[1731759283234,0.55,3184.6,3184.1,3.1406]
[1731759283438,0.6018,3185.2,3183.5,3.1411]
[1731759283439,0.6018,3184.3,3183.5,3.1411]
[1731759283730,0.58507278,3184.2,3183.6,3.14109]
[1731759283886,0.03507278,3184.2,3183.6,3.14109]
[1731759284326,0.03507278,3184.2,3182.7,4.00066389]
[1731759284327,3.17560278,3184.2,3182.8,0.9373]
[1731759284627,0.03507278,3184.2,3183.6,3.14107]
[1731759284928,0.03507278,3184.2,3183.4,3.14128]
[1731759285131,0.03507278,3184.2,3183.7,3.1409]
[1731759285298,0.03507278,3184.2,3183.8,3.14087]
[1731759285497,3.17529278,3184.5,3183.8,3.14087]
[1731759285701,0.03507278,3184.5,3184.0,3.14069]
[1731759286021,0.03507278,3184.5,3184.2,3.14043]
[1731759286335,3.0,3185.5,3184.6,3.14009]
[1731759286336,0.03507278,3185.1,3184.6,3.14009]
[1731759286701,0.03507278,3185.1,3184.5,3.14018]
[1731759286941,3.1401,3184.7,3183.9,3.1408]
[1731759287149,0.6018,3185.0,3183.8,3.0]
[1731759287150,0.03507278,3184.6,3183.8,3.0]
[1731759287443,3.98066389,3184.2,3181.6,0.9373]
[1731759287623,3.98066389,3184.2,3180.8,17.47385]
[1731759287624,3.14228,3182.4,3181.4,3.14326]
[1731759287824,0.6018,3182.6,3181.6,3.14306]
[1731759287825,0.03507278,3182.3,3181.6,3.14306]
[1731759288336,0.03507278,3182.3,3181.6,3.09306]
[1731759288556,0.03507278,3182.3,3181.1,0.9373]
[1731759288557,0.03507278,3182.3,3181.4,3.98066389]
[1731759288873,3.14156,3183.2,3182.0,3.14258]
[1731759288874,0.03507278,3182.5,3182.0,3.14258]
[1731759289058,0.03507278,3183.1,3182.6,3.14198]
[1731759289257,0.03507278,3183.1,3182.0,0.9373]
[1731759289258,3.1414,3183.3,3182.1,3.14256]
[1731759289440,0.03507278,3183.2,3182.0,0.9373]
[1731759289643,0.03507278,3183.2,3181.9,3.14271]
[1731759289969,0.6018,3182.7,3181.9,3.14271]
[1731759290266,0.6018,3182.7,3181.4,3.14317]
[1731759290267,3.14224,3182.5,3181.4,3.14317]
[1731759290438,3.17735278,3182.4,3181.4,3.14326]
[1731759290639,0.03507278,3182.4,3181.6,3.14307]
[1731759290846,0.03507278,3182.4,3181.8,3.14285]
[1731759291156,0.6018,3183.1,3181.9,0.9373]
[1731759291328,3.17677278,3183.0,3181.0,0.9373]
[1731759291527,0.37785728,3182.9,3181.1,0.49179639]
[1731759291730,3.14238,3182.3,3181.5,3.14307]
[1731759291923,0.6018,3183.1,3181.3,3.14336]
[1731759291924,0.03507278,3182.2,3181.3,3.14336]
[1731759292122,0.6018,3183.1,3181.1,0.49179639]
[1731759292123,3.14198,3182.8,3181.8,3.14283]
[1731759292422,0.6018,3183.1,3181.3,0.01]
[1731759292423,0.03507278,3182.7,3181.3,0.01]
[1731759292660,0.03507278,3183.0,3181.8,0.01]
[1731759292868,0.01,3184.7,3181.7,0.56]
[1731759292869,0.03507278,3184.0,3183.5,3.14119]
[1731759293027,0.03507278,3184.0,3182.8,0.56]
[1731759293228,0.03507278,3184.0,3183.5,3.14111]
[1731759293424,0.6018,3184.1,3183.3,3.14139]
[1731759293668,0.03507278,3184.0,3183.3,0.55]
[1731759293869,0.03507278,3184.0,3183.5,0.55]
[1731759294165,0.03507278,3184.0,3183.6,3.14106]
[1731759294372,0.03507278,3184.0,3183.7,3.14098]
[1731759294596,0.03507278,3184.4,3183.7,3.14098]
[1731759294933,0.03507278,3184.4,3184.0,3.14069]
[1731759295133,0.03507278,3184.4,3183.8,3.14088]
[1731759295359,0.03507278,3184.4,3183.4,0.55]
[1731759295635,0.03507278,3184.4,3183.9,3.14071]
[1731759296076,0.03507278,3184.4,3184.0,3.14067]
[1731759296248,0.03507278,3184.4,3184.2,3.14049]
[1731759296577,0.03507278,3184.4,3183.6,3.14103]
[1731759296780,0.03507278,3184.4,3183.3,0.41943106]
[1731759297072,0.03507278,3184.4,3184.0,3.14065]
[1731759297632,0.55,3184.3,3183.8,3.14089]
[1731759297834,0.03507278,3184.2,3183.8,3.14089]
[1731759298133,0.55,3184.1,3183.5,3.14113]
[1731759298489,0.03507278,3184.0,3183.8,3.14088]
[1731759298774,0.03507278,3184.0,3183.0,3.0]
[1731759298775,0.03507278,3184.4,3184.0,3.14067]
[1731759299350,0.03507278,3184.4,3183.7,3.14092]
[1731759299661,0.03507278,3184.4,3183.9,3.14079]
[1731759299990,0.6018,3184.2,3182.0,0.9901]
[1731759300198,0.6018,3183.4,3183.0,3.14168]
[1731759300412,3.1408,3183.9,3183.1,3.14159]
[1731759300717,1.1518,3184.0,3183.4,3.14126]
[1731759300718,0.55,3183.7,3183.4,3.14126]
[1731759300918,0.03507278,3183.9,3183.7,3.14099]
[1731759301202,0.55,3184.5,3183.9,3.14071]
[1731759301418,0.55,3184.3,3183.9,3.14071]
[1731759301690,0.6018,3184.6,3183.1,3.14158]
[1731759301691,0.55,3184.1,3183.1,3.14158]
[1731759301921,0.03507278,3184.0,3183.1,3.0]
[1731759302194,3.6908,3183.9,3183.0,3.0]
[1731759302352,0.6018,3183.7,3183.1,3.14149]
[1731759302553,0.03507278,3183.6,3183.5,3.14119]
[1731759302912,3.74223,3184.3,3183.9,3.14072]
[1731759302913,0.03507278,3184.2,3183.9,3.14072]
[1731759303199,3.1407,3184.0,3182.9,3.14176]
[1731759303416,3.14027,3184.5,3182.5,3.14218]
[1731759303417,3.14119,3183.6,3182.5,3.14218]
[1731759303725,0.6018,3183.4,3182.5,3.14218]
[1731759303880,0.6018,3183.4,3182.2,3.14245]
[1731759303881,0.03507278,3183.3,3182.2,3.14245]
[1731759304068,3.69189,3182.8,3182.0,3.14264]
[1731759304278,1.1518,3182.6,3181.1,1.48189639]
[1731759304468,0.55,3182.4,3181.6,3.14304]
[1731759304670,0.55,3182.4,3181.1,0.9901]
[1731759304671,0.03507278,3182.3,3181.9,3.14269]
[1731759304885,0.01,3182.2,3180.4,0.005]
[1731759305060,0.01,3182.2,3180.6,3.14396]
[1731759305061,3.14327,3181.4,3180.6,3.14396]
[1731759305250,0.6018,3182.0,3180.4,0.005]
[1731759305251,0.03507278,3181.3,3180.4,0.005]
[1731759305556,0.03507278,3181.3,3180.5,3.14407]
[1731759305754,0.03507278,3181.3,3181.0,3.14361]
[1731759305952,0.03507278,3181.7,3181.1,3.14354]
[1731759306510,3.14334,3181.4,3180.4,0.005]
[1731759306649,0.6018,3181.0,3180.4,0.005]
[1731759306854,0.03507278,3180.9,3180.4,0.005]
[1731759307511,0.03507278,3180.9,3180.5,3.14407]
[1731759307687,0.03507278,3180.9,3180.4,0.005]
[1731759308071,3.14407,3180.6,3180.4,0.005]
[1731759308390,4.33102278,3180.5,3180.4,0.005]
[1731759308567,6.78102278,3180.5,3180.4,0.005]
[1731759309082,3.74675,3179.7,3179.6,0.1454606]
[1731759309285,3.78182278,3179.7,3179.6,0.1454606]
[1731759309484,4.47448606,3179.7,3179.6,0.1454606]
[1731759310019,7.47448606,3179.7,3179.6,6e-07]
[1731759310233,7.49448606,3179.7,3179.6,6e-07]
[1731759311285,7.49448606,3179.7,3177.5,3.14712]
[1731759311286,0.6018,3178.6,3177.5,3.14712]
[1731759311460,0.6018,3178.6,3177.4,0.9901]
[1731759311461,3.18122278,3178.5,3176.7,7.12851389]
[1731759311663,3.18122278,3178.5,3177.5,3.14711]
[1731759311959,3.18122278,3178.5,3177.0,0.9901]
[1731759312159,0.314407,3178.4,3177.5,3.14711]
[1731759312364,3.18141278,3178.3,3177.0,0.9901]
[1731759312560,3.14664,3178.0,3177.1,3.78045061]
[1731759312812,0.03507278,3177.9,3177.1,3.78045061]
[1731759312959,0.6015,3177.8,3177.1,0.63294061]
[1731759313170,0.6015,3177.8,3176.8,3.1478]
[1731759313171,0.03507278,3177.7,3176.8,3.1478]
[1731759313373,0.03507278,3177.7,3176.9,3.14762]
[1731759313692,0.03507278,3178.5,3177.6,1.0412]
[1731759313883,0.03007278,3178.5,3178.0,3.14663]
[1731759314081,0.03007278,3178.5,3177.8,3.14683]
[1731759314288,0.03007278,3178.6,3178.4,3.14619]
[1731759314598,0.03007278,3179.2,3178.3,3.14632]
[1731759314799,3.14564,3179.0,3177.9,3.14663]
[1731759315013,0.03007278,3178.9,3177.3,1.0412]
[1731759315182,3.14594,3178.7,3177.7,3.14689]
[1731759315385,0.6015,3178.8,3177.2,3.14734]
[1731759315386,3.14643,3178.2,3177.2,3.14734]
[1731759315581,0.03007278,3178.1,3177.8,0.02781746]
[1731759315767,0.03007278,3178.1,3176.4,0.1454606]
[1731759315768,3.74816,3178.0,3177.0,3.14761]
[1731759316001,0.03007278,3177.9,3177.0,3.14761]
[1731759316202,0.40789606,3177.9,3177.1,0.02791862]
[1731759316519,0.03007278,3177.9,3177.1,0.02791862]
[1731759316828,3.17680278,3177.9,3177.1,0.02791862]
[1731759317022,3.14691,3177.8,3177.2,0.02809007]
[1731759317327,0.03007278,3177.7,3177.0,0.9422]
[1731759317512,0.03007278,3178.2,3177.8,3.14683]
[1731759317678,0.03007278,3178.2,3177.6,3.14693]
[1731759317880,0.03007278,3178.2,3177.3,3.14723]
[1731759318242,0.03007278,3178.4,3178.0,3.14657]
[1731759318398,0.03007278,3178.4,3178.1,3.14652]
[1731759318593,0.03007278,3178.4,3177.4,0.06294035]
[1731759318594,0.6015,3179.0,3178.3,3.14633]
[1731759318797,0.6015,3179.0,3178.3,0.0261268]
[1731759318798,0.03007278,3178.9,3178.3,0.0261268]
[1731759319301,3.74773,3178.4,3178.3,0.0261268]
[1731759319533,3.74773,3178.4,3175.8,3.293531]
[1731759319534,0.01,3177.9,3175.8,3.293531]
[1731759319678,0.01,3177.9,3175.8,3.6228841]
[1731759319679,3.14801,3176.7,3175.8,3.6228841]
[1731759319879,3.14855,3176.1,3175.8,0.144821]
[1731759320138,0.03007278,3176.0,3175.8,0.144821]
[1731759320339,3.17868278,3176.0,3175.0,3.14951]
[1731759320665,0.03007278,3176.2,3175.9,3.14871]
[1731759320927,3.1483,3176.4,3175.3,3.14922]
[1731759321132,0.03007278,3176.3,3175.8,3.1488]
[1731759321315,0.03007278,3176.3,3175.6,3.14897]
[1731759321512,0.34791106,3176.3,3175.6,3.14897]
[1731759321696,3.14852,3176.1,3175.4,3.14917]
[1731759321890,3.75410278,3176.0,3175.2,3.14937]
[1731759322132,3.14872,3175.9,3174.9,3.14965]
[1731759322314,3.14892,3175.7,3174.9,3.14965]
[1731759322520,0.03007278,3175.6,3175.0,3.14958]
[1731759322817,0.93667797,3176.3,3173.6,0.09713854]
[1731759322818,0.5754,3174.8,3173.6,0.09713854]
[1731759323015,3.15,3174.6,3173.6,0.09713854]
[1731759323331,3.15036,3174.3,3173.6,0.09713854]
[1731759323494,3.18026278,3174.5,3173.6,3.24810854]
[1731759323495,0.03007278,3174.2,3173.6,3.24810854]
[1731759323695,0.5754,3174.1,3173.6,0.09713854]
[1731759323881,3.15069,3173.9,3173.6,0.09713854]
[1731759324082,0.03007278,3173.8,3173.6,0.09713854]
[1731759324469,0.03007278,3174.0,3173.6,0.09713854]
[1731759325466,0.03007278,3174.5,3173.6,3.24808854]
[1731759325647,0.03007278,3175.2,3174.2,3.1503]
[1731759325852,3.14957,3175.1,3173.9,3.15069]
[1731759326048,3.14994,3174.7,3173.6,0.09713854]
[1731759326220,3.1502,3174.4,3173.6,0.09713854]
[1731759326415,0.5754,3174.2,3173.6,0.09713854]
[1731759326726,3.15088,3173.8,3173.6,0.09713854]
[1731759326927,0.03007278,3173.7,3173.6,0.09713854]
[1731759327356,6.73096278,3173.7,3173.6,0.09713854]
[1731759328135,7.30636278,3173.7,3173.6,0.09713854]
[1731759328516,0.60547278,3173.7,3173.6,0.09713854]
[1731759328759,0.03007278,3173.7,3173.6,0.09713854]
[1731759328976,0.03007278,3174.1,3174.0,3.15059]
[1731759329121,0.03007278,3174.1,3173.8,3.15069]
[1731759329457,0.03007278,3174.1,3173.6,0.09713854]
[1731759329458,3.1499,3174.7,3173.6,0.09713854]
[1731759329619,3.15021,3174.4,3173.6,0.09713854]
[1731759329820,0.03007278,3174.3,3173.6,0.09713854]
[1731759330059,0.03007278,3174.7,3173.8,3.15077]
[1731759330580,0.03007278,3174.7,3173.6,0.09713854]
[1731759330859,0.03007278,3174.7,3174.5,3.15]
[1731759331016,0.5754,3174.9,3173.6,3.09713854]
[1731759331217,3.1501,3174.5,3173.6,0.09713854]
[1731759331419,0.5754,3174.3,3173.6,0.09713854]
[1731759331618,3.18047278,3174.2,3173.6,0.09713854]
[1731759332061,3.1505,3174.1,3173.6,0.09713854]
[1731759332238,3.15071,3173.9,3173.6,0.09713854]
[1731759332451,0.03007278,3173.8,3173.6,0.09713854]
[1731759332635,4.27629,3173.7,3173.6,0.09713854]
[1731759333022,3.72629,3173.7,3173.6,0.09713854]
[1731759333624,0.5754,3173.7,3173.6,0.09713854]
[1731759333822,0.03007278,3174.0,3173.6,3.24810854]
[1731759334129,0.03007278,3174.0,3173.9,3.15069]
[1731759334558,0.03007278,3174.0,3173.6,0.09713854]
[1731759334776,0.03007278,3174.1,3173.6,3.24812854]
[1731759334956,3.15059,3174.0,3173.6,0.09713854]
[1731759335121,0.03007278,3173.9,3173.6,0.09713854]
[1731759335644,3.15085,3173.8,3173.6,0.09713854]
[1731759335831,3.18096278,3173.7,3173.6,0.09713854]
[1731759336029,3.81412806,3173.7,3173.6,0.09713854]
[1731759336660,0.03007278,3173.7,3173.6,0.09713854]
[1731759336865,3.18057278,3174.1,3173.6,0.09713854]
[1731759337256,0.03007278,3174.1,3173.6,0.09713854]
[1731759337588,0.5754,3174.2,3174.0,3.15059]
[1731759337767,0.5754,3174.2,3174.1,3.15049]
[1731759337943,0.5754,3174.2,3174.1,6.780598]
[1731759338143,0.03007278,3176.2,3175.7,3.14887]
[1731759338338,0.03007278,3176.5,3174.9,3.0]
[1731759338556,0.03007278,3176.5,3175.0,0.3]
[1731759338779,0.03007278,3176.5,3175.0,0.01]
[1731759338979,3.17753278,3177.2,3175.3,3.1493]
[1731759339186,3.17753278,3177.2,3176.4,3.14821]
[1731759339393,3.17753278,3177.2,3176.4,6.29642]
[1731759339571,3.49527606,3177.2,3176.4,3.14817]
[1731759339883,3.49527606,3177.2,3175.7,3.14887]
[1731759339884,0.03007278,3177.2,3175.8,3.0]
[1731759340089,0.03007278,3177.6,3176.9,3.1477]
[1731759340240,0.03007278,3177.6,3176.1,0.01]
[1731759340445,4.00066389,3178.8,3175.7,3.14885]
[1731759340446,0.03007278,3178.2,3177.9,3.14671]
[1731759340705,0.03007278,3178.2,3177.9,3.14663]
[1731759340845,7.12560389,3179.8,3177.2,3.14736]
[1731759340846,0.03007278,3178.7,3178.3,3.14633]
[1731759341195,0.03007278,3178.7,3178.6,3.14603]
[1731759341493,0.03007278,3179.7,3178.8,3.14584]
[1731759341644,0.03007278,3179.7,3179.2,3.14543]
[1731759341844,0.03007278,3179.7,3178.3,3.98066389]
[1731759341845,0.03007278,3180.1,3179.5,3.14505]
[1731759342045,0.03007278,3180.1,3179.2,3.14541]
[1731759342288,0.03007278,3180.1,3178.6,3.14602]
[1731759342594,3.14525,3179.4,3178.3,3.14631]
[1731759342889,3.14556,3179.1,3178.0,3.14653]
[1731759343043,0.03007278,3179.3,3178.0,3.14653]
[1731759343044,0.03007278,3179.0,3178.0,3.14653]
[1731759343310,0.03007278,3179.0,3178.7,3.14584]
[1731759343511,3.46215328,3180.0,3178.2,0.01]
[1731759343512,0.03007278,3179.6,3178.2,0.01]
[1731759343746,0.03007278,3179.6,3179.5,3.14514]
[1731759343906,3.14418,3180.5,3179.6,3.145]
[1731759343907,0.03007278,3180.3,3179.6,3.145]
[1731759344102,0.34749806,3180.3,3179.6,3.145]
[1731759344306,0.34749806,3180.3,3179.7,3.14494]
[1731759344548,0.03007278,3180.3,3179.7,3.14494]
[1731759344746,3.14411,3180.6,3179.7,3.14494]